fUSD/lending_fUSD_20251231
["ID","MTS","AMOUNT","RATE_DAILY","PERIOD"]
[400185341,1767177040565,-500.0,0.00013755,2]
[400185343,1767177040575,-500.0,0.00013755,2]
[400185345,1767177040585,-353.55847487,0.00013755,2]
[400185347,1767177040595,-500.0,0.00013755,2]
[400185349,1767177040605,-500.0,0.00013755,2]
[400185351,1767177040615,-500.0,0.00013755,2]
[400185353,1767177040625,-500.0,0.00013755,2]
[400185355,1767177040636,-500.0,0.00013755,2]
[400185357,1767177040646,-500.0,0.00013755,2]
[400185359,1767177040655,-500.0,0.00013755,2]
[400185361,1767177040666,-500.0,0.00013755,2]
[400185363,1767177040675,-414.08933578,0.00013755,2]
[400185365,1767177040685,-500.0,0.00013755,2]
[400185367,1767177040695,-500.0,0.00013755,2]
[400185369,1767177040704,-500.0,0.00013755,2]
[400185371,1767177040714,-500.0,0.00013755,2]
[400185374,1767177040724,-500.0,0.00013755,2]
[400185376,1767177040734,-500.0,0.00013755,2]
[400185378,1767177040743,-500.0,0.00013755,2]
[400185380,1767177040753,-500.0,0.00013755,2]
[400185382,1767177040763,-500.0,0.00013755,2]
[400185384,1767177040775,-500.0,0.00013755,2]
[400185386,1767177040785,-500.0,0.00013755,2]
[400185388,1767177040795,-500.0,0.00013755,2]
[400185390,1767177040804,-500.0,0.00013755,2]
[400185392,1767177040814,-500.0,0.00013755,2]
[400185394,1767177040825,-500.0,0.00013755,2]
[400185396,1767177040836,-500.0,0.00013755,2]
[400185398,1767177040846,-500.0,0.00013755,2]
[400185400,1767177040855,-500.0,0.00013755,2]
[400185403,1767177040865,-500.0,0.00013755,2]
[400185405,1767177040875,-500.0,0.00013755,2]
[400185407,1767177040885,-500.0,0.00013755,2]
[400185409,1767177040896,-300.07789903,0.00013755,2]
[400185411,1767177040906,-468.04981383,0.00013755,2]
[400185413,1767177040915,-4844.31568003,0.00013788,2]
[400185415,1767177040925,-4464.05,0.00013975,2]
[400185417,1767177040935,-217.85001296,0.0001398,2]
[400185419,1767177040945,-87321.47213456,0.0001399,2]
[400185421,1767177040955,-4844.31567998,0.00014134,2]
[400185423,1767177040965,-214.07161166,0.00014147,2]
[400185425,1767177040974,-233.88,0.00014296,2]
[400185427,1767177040984,-4464.05,0.00014374,2]
[400185429,1767177040993,-6941.79430765,0.0001439,2]
[400185431,1767177041002,-150.0,0.0001441,2]
[400185433,1767177041011,-150.0,0.0001441,2]
[400185435,1767177041020,-150.0,0.0001441,2]
[400185437,1767177041030,-500.0,0.0001441,2]
[400185439,1767177041039,-150.0,0.0001441,2]
[400185441,1767177041049,-150.0,0.0001441,2]
[400185443,1767177041058,-150.0,0.0001441,2]
[400185445,1767177041067,-150.0,0.0001441,2]
[400185447,1767177041077,-150.0,0.0001441,2]
[400185449,1767177041086,-150.0,0.0001441,2]
[400185451,1767177041096,-150.0,0.0001441,2]
[400185453,1767177041105,-150.0,0.0001441,2]
[400185455,1767177041114,-150.0,0.0001441,2]
[400185457,1767177041123,-150.0,0.00014465,2]
[400185459,1767177041133,-150.0,0.00014465,2]
[400185461,1767177041142,-500.0,0.00014465,2]
[400185463,1767177041151,-150.0,0.00014465,2]
[400185465,1767177041161,-200.0,0.00014465,2]
[400185467,1767177041170,-219.0,0.00014465,2]
[400185469,1767177041179,-150.0,0.00014465,2]
[400185471,1767177041189,-200.0,0.00014465,2]
[400185473,1767177041201,-1000.0,0.00014479,2]
[400185475,1767177041212,-4844.31567998,0.0001448,2]
[400185477,1767177041222,-250.0,0.00014494,2]
[400185479,1767177041232,-150.0,0.0001452,2]
[400185481,1767177041241,-150.0,0.0001452,2]
[400185483,1767177041251,-500.0,0.0001452,2]
[400185486,1767177041260,-150.0,0.0001452,2]
[400185488,1767177041269,-200.0,0.0001452,2]
[400185490,1767177041280,-502.0,0.00014521,2]
[400185492,1767177041290,-150.0,0.00014574,2]
[400185494,1767177041301,-150.0,0.00014574,2]
[400185496,1767177041313,-500.0,0.00014574,2]
[400185498,1767177041323,-150.0,0.00014574,2]
[400185500,1767177041333,-214.07161166,0.00014606,2]
[400185502,1767177041343,-200.0,0.00014608,2]
[400185504,1767177041352,-150.0,0.00014629,2]
[400185506,1767177041363,-171.0,0.00014629,2]
[400185507,1767177041373,-500.0,0.00014629,2]
[400185509,1767177041383,-150.0,0.00014629,2]
[400185511,1767177041393,-420.0,0.00014638,2]
[400185513,1767177041403,-420.0,0.00014638,2]
[400185516,1767177041414,-255.0,0.00014669,2]
[400185518,1767177041424,-250.0,0.00014684,2]
[400185520,1767177041435,-500.0,0.00014684,2]
[400185522,1767177041444,-250.0,0.00014684,2]
[400185524,1767177041454,-1680.0,0.00014688,2]
[400185526,1767177041463,-369.74524593,0.00014739,2]
[400185528,1767177041473,-4464.05,0.00014773,2]
[400185530,1767177041483,-500.0,0.00014795,2]
[400185532,1767177041493,-247.23,0.00014807,2]
[400185534,1767177041504,-1600.0,0.00014815,2]
[400185536,1767177041514,-4844.31567998,0.00014825,2]
[400185538,1767177041524,-233.88,0.00015011,2]
[400185540,1767177041534,-214.07161166,0.00015065,2]
[400185543,1767177041544,-4844.31567998,0.00015171,2]
[400185545,1767177041554,-4464.05,0.00015173,2]
[400185547,1767177041564,-150.0,0.00015288,2]
[400185549,1767177041574,-162.80268362,0.00015288,2]
[400185551,1767177041584,-150.0,0.00015288,2]
[400185553,1767177041594,-150.0,0.00015288,2]
[400185555,1767177041604,-153.50138107,0.00015288,2]
[400185557,1767177041614,-150.0,0.00015288,2]
[400185559,1767177041623,-151.85727785,0.00015288,2]
[400185561,1767177041633,-153.00859182,0.00015288,2]
[400185563,1767177041643,-150.0,0.00015288,2]
[400185565,1767177041652,-159.79234636,0.00015288,2]
[400185567,1767177041662,-4844.31567998,0.00015517,2]
[400185569,1767177041671,-214.07161166,0.00015523,2]
[400185571,1767177041681,-4812.0,0.00015556,2]
[400185573,1767177041691,-150.0,0.00015627,2]
[400185575,1767177041701,-151.0,0.00015652,2]
[400185577,1767177041710,-151.0,0.00015652,2]
[400185579,1767177041720,-233.88,0.00015726,2]
[400185581,1767177041730,-500.0,0.00015808,2]
[400185583,1767177041741,-500.0,0.00015819,2]
[400185592,1767177041964,-4844.31567998,0.00015863,2]
[400185593,1767177041975,-433.0,0.00015875,2]
[400185594,1767177041985,-554.77,0.0001589,2]
[400185596,1767177041994,-1264.0,0.00015939,2]
[400185598,1767177042005,-432.0,0.00015939,2]
[400185600,1767177042015,-1199.0,0.00015939,2]
[400185601,1767177042024,-913.0,0.00015939,2]
[400185603,1767177042033,-2433.0,0.00015939,2]
[400185604,1767177042043,-1528.0,0.00015939,2]
[400185605,1767177042052,-150.0,0.00015967,2]
[400185606,1767177042062,-500.0,0.00015973,2]
[400185607,1767177042072,-500.0,0.00015973,2]
[400185608,1767177042081,-500.0,0.00015973,2]
[400185609,1767177042091,-500.0,0.00015973,2]
[400185610,1767177042101,-500.0,0.00015973,2]
[400185611,1767177042111,-202.31335933,0.00015973,2]
[400185612,1767177042121,-500.0,0.00015973,2]
[400185613,1767177042131,-500.0,0.00015973,2]
[400185614,1767177042140,-500.0,0.00015973,2]
[400185615,1767177042150,-500.73461727,0.00015973,2]
[400185616,1767177042159,-500.0,0.00015973,2]
[400185617,1767177042169,-500.0,0.00015973,2]
[400185618,1767177042179,-214.07161166,0.00015982,2]
[400185619,1767177042188,-153.0,0.00016048,2]
[400185620,1767177042198,-587.0,0.00016048,2]
[400185621,1767177042207,-1000.0,0.00016087,2]
[400185622,1767177042217,-150.0,0.00016137,2]
[400185623,1767177042226,-150.0,0.00016137,2]
[400185624,1767177042236,-2351.0,0.00016157,2]
[400185625,1767177042246,-150.0,0.00016164,2]
[400185626,1767177042255,-150.0,0.00016164,2]
[400185627,1767177042265,-150.0,0.00016164,2]
[400185628,1767177042275,-27964.87900122,0.000162,5]
[400185629,1767177042285,-4844.31567998,0.00016208,2]
[400185630,1767177042295,-277.0,0.00016219,2]
[400185631,1767177042304,-197.13609629,0.00016219,2]
[400185632,1767177042319,-150.0,0.00016307,2]
[400185633,1767177042329,-500.0,0.00016437,2]
[400185634,1767177042339,-725.15,0.00016438,2]
[400185635,1767177042349,-500.0,0.00016438,2]
[400185636,1767177042359,-822.44936273,0.00016438,2]
[400185637,1767177042368,-822.44936273,0.00016438,2]
[400185638,1767177042380,-822.44936273,0.00016438,2]
[400185639,1767177042390,-822.44936273,0.00016438,2]
[400185640,1767177042399,-822.44936273,0.00016438,2]
[400185641,1767177042409,-822.44936273,0.00016438,2]
[400185642,1767177042418,-822.44936273,0.00016438,2]
[400185643,1767177042428,-822.44936273,0.00016438,2]
[400185644,1767177042437,-822.44936273,0.00016438,2]
[400185645,1767177042448,-822.44936273,0.00016438,2]
[400185646,1767177042457,-822.44936273,0.00016438,2]
[400185647,1767177042467,-822.44936273,0.00016438,2]
[400185648,1767177042477,-822.44936273,0.00016438,2]
[400185649,1767177042486,-822.44936273,0.00016438,2]
[400185650,1767177042496,-822.44936273,0.00016438,2]
[400185651,1767177042506,-822.44936273,0.00016438,2]
[400185652,1767177042516,-822.44936273,0.00016438,2]
[400185653,1767177042526,-822.44936273,0.00016438,2]
[400185654,1767177042536,-822.44936273,0.00016438,2]
[400185655,1767177042547,-822.44936273,0.00016438,2]
[400185656,1767177042557,-822.44936273,0.00016438,2]
[400185657,1767177042567,-822.44936273,0.00016438,2]
[400185658,1767177042576,-822.44936273,0.00016438,2]
[400185659,1767177042586,-822.44936273,0.00016438,2]
[400185660,1767177042595,-822.44936273,0.00016438,2]
[400185661,1767177042605,-822.44936273,0.00016438,2]
[400185662,1767177042615,-822.44936273,0.00016438,2]
[400185663,1767177042625,-822.44936273,0.00016438,2]
[400185664,1767177042634,-822.44936273,0.00016438,2]
[400185665,1767177042644,-822.44936273,0.00016438,2]
[400185666,1767177042653,-822.44936273,0.00016438,2]
[400185667,1767177042663,-822.44936273,0.00016438,2]
[400185668,1767177042673,-822.44936273,0.00016438,2]
[400185669,1767177042682,-822.44936273,0.00016438,2]
[400185670,1767177042692,-822.44936273,0.00016438,2]
[400185671,1767177042702,-822.44936273,0.00016438,2]
[400185672,1767177042712,-822.44936273,0.00016438,2]
[400185673,1767177042721,-822.44936273,0.00016438,2]
[400185674,1767177042731,-822.44936273,0.00016438,2]
[400185675,1767177042741,-822.44936273,0.00016438,2]
[400185676,1767177042750,-822.44936273,0.00016438,2]
[400185677,1767177042760,-822.44936273,0.00016438,2]
[400185678,1767177042770,-822.44936273,0.00016438,2]
[400185679,1767177042780,-822.44936273,0.00016438,2]
[400185680,1767177042790,-822.44936273,0.00016438,2]
[400185681,1767177042799,-822.44936273,0.00016438,2]
[400185682,1767177042808,-822.44936273,0.00016438,2]
[400185683,1767177042818,-822.44936273,0.00016438,2]
[400185684,1767177042827,-822.44936273,0.00016438,2]
[400185685,1767177042836,-822.44936273,0.00016438,2]
[400185686,1767177042846,-822.44936273,0.00016438,2]
[400185687,1767177042856,-822.44936273,0.00016438,2]
[400185688,1767177042866,-822.44936273,0.00016438,2]
[400185689,1767177042875,-822.44936273,0.00016438,2]
[400185690,1767177042885,-822.44936273,0.00016438,2]
[400185691,1767177042895,-822.44936273,0.00016438,2]
[400185692,1767177042904,-822.44936273,0.00016438,2]
[400185693,1767177042914,-822.44936273,0.00016438,2]
[400185694,1767177042923,-822.44936273,0.00016438,2]
[400185695,1767177042933,-822.44936273,0.00016438,2]
[400185696,1767177042943,-822.44936273,0.00016438,2]
[400185697,1767177042952,-822.44936273,0.00016438,2]
[400185698,1767177042963,-822.44936273,0.00016438,2]
[400185699,1767177042972,-226.21,0.00016438,2]
[400185700,1767177042982,-12577.61,0.00016438,2]
[400185701,1767177042991,-233.88,0.00016441,2]
[400185702,1767177043000,-214.07161166,0.00016441,2]
[400185703,1767177043010,-1600.0,0.00016461,2]
[400185704,1767177043020,-530.0,0.00016466,2]
[400185705,1767177043029,-500.0,0.00016493,2]
[400185706,1767177043039,-151.80413951,0.00016502,2]
[400185707,1767177043048,-1000.0,0.00016521,2]
[400185709,1767177043058,-505.70610325,0.00016521,2]
[400185710,1767177043067,-500.0,0.00016521,2]
[400185711,1767177043076,-500.0,0.00016521,2]
[400185712,1767177043086,-1005.95243998,0.00016521,2]
[400185713,1767177043095,-510.05158063,0.00016521,2]
[400185714,1767177043105,-1000.0,0.00016521,2]
[400185715,1767177043114,-500.0,0.00016521,2]
[400185716,1767177043124,-500.0,0.00016548,2]
[400185717,1767177043134,-4844.31567998,0.00016554,2]
[400185718,1767177043143,-500.0,0.00016602,2]
[400185719,1767177043152,-150.0,0.00016647,2]
[400185720,1767177043162,-5788.2,0.00016647,2]
[400185721,1767177043173,-500.0,0.00016657,2]
[400185722,1767177043183,-391.62241139,0.0001666,2]
[400185723,1767177043192,-7631.71900392,0.000167,2]
[400185724,1767177043202,-500.0,0.00016712,2]
[400185725,1767177043212,-725.15,0.00016712,2]
[400185726,1767177043221,-474.68,0.00016712,2]
[400185727,1767177043230,-357.4,0.00016712,2]
[400185728,1767177043240,-1000.0,0.00016748,2]
[400185729,1767177043249,-3542.17278031,0.0001675,2]
[400185730,1767177043259,-500.0,0.00016767,2]
[400185731,1767177043269,-1000.0,0.00016776,2]
[400185732,1767177043278,-1000.0,0.00016789,2]
[400185733,1767177043287,-1000.0,0.00016818,2]
[400185734,1767177043296,-1000.0,0.00016819,2]
[400185735,1767177043306,-1000.0,0.0001682,2]
[400185736,1767177043319,-500.0,0.00016822,2]
[400185737,1767177043329,-1000.0,0.00016849,2]
[400185738,1767177043338,-25000.0,0.00016856,3]
[400185739,1767177043348,-200.0,0.00016864,2]
[400185740,1767177043359,-25000.0,0.00016865,3]
[400185741,1767177043369,-1000.0,0.00016866,2]
[400185742,1767177043378,-1000.0,0.00016868,2]
[400185743,1767177043388,-25000.0,0.00016874,3]
[400185744,1767177043398,-500.0,0.00016876,2]
[400185745,1767177043407,-1000.0,0.00016879,2]
[400185746,1767177043417,-1000.0,0.0001688,2]
[400185747,1767177043427,-1000.0,0.0001688,2]
[400185748,1767177043436,-247.75897731,0.00016881,2]
[400185749,1767177043446,-25000.0,0.00016882,3]
[400185750,1767177043455,-1000.0,0.00016885,2]
[400185751,1767177043465,-1000.0,0.00016886,2]
[400185752,1767177043474,-1000.0,0.00016887,2]
[400185753,1767177043483,-1000.0,0.00016889,2]
[400185754,1767177043493,-605.27361039,0.0001689,2]
[400185755,1767177043502,-25000.0,0.00016891,3]
[400185756,1767177043512,-1000.0,0.00016898,2]
[400185757,1767177043521,-25000.0,0.000169,3]
[400185758,1767177043531,-10000.0,0.000169,2]
[400185759,1767177043540,-210.81090801,0.000169,2]
[400185760,1767177043554,-17041.86737211,0.000169,3]
[400185761,1767177043564,-4844.31567998,0.000169,2]
[400185762,1767177043573,-214.07161166,0.000169,2]
[400185763,1767177043583,-341.34054317,0.000169,2]
[400185764,1767177043593,-11115.06980772,0.000169,2]
[400185765,1767177043603,-2506.6452256,0.000169,2]
[400185766,1767177043612,-441.5280825,0.000169,2]
[400185767,1767177043621,-5085.30951745,0.000169,2]
[400185768,1767177043631,-5741.0,0.000169,2]
[400185769,1767177043640,-619.17615633,0.00016931,2]
[400185770,1767177043650,-1124.22,0.00016932,2]
[400185771,1767177043661,-430.31517545,0.00016934,2]
[400185772,1767177043672,-1000.0,0.00016935,2]
[400185773,1767177043682,-1000.0,0.00016954,2]
[400185774,1767177043692,-1000.0,0.00016956,2]
[400185775,1767177043702,-606.0,0.00016959,2]
[400185776,1767177043712,-1000.0,0.00016967,2]
[400185777,1767177043722,-500.0,0.00016973,2]
[400185778,1767177043731,-550.00207661,0.00016973,2]
[400185779,1767177043741,-500.0,0.00016973,2]
[400185780,1767177043751,-453.14856339,0.00016973,2]
[400185781,1767177043761,-500.0,0.00016973,2]
[400185782,1767177043771,-500.0,0.00016973,2]
[400185783,1767177043781,-500.0,0.00016973,2]
[400185784,1767177043791,-162.62949941,0.00016973,2]
[400185785,1767177043801,-519.646537,0.00016973,2]
[400185786,1767177043810,-500.0,0.00016973,2]
[400185787,1767177043820,-500.0,0.00016973,2]
[400185788,1767177043830,-500.0,0.00016973,2]
[400185789,1767177043839,-500.0,0.00016973,2]
[400185790,1767177043849,-500.0,0.00016973,2]
[400185791,1767177043859,-500.0,0.00016973,2]
[400185792,1767177043868,-156.77400144,0.00016973,2]
[400185793,1767177043878,-556.81874578,0.00016973,2]
[400185794,1767177043888,-501.35455747,0.00016973,2]
[400185795,1767177043897,-335.11797254,0.00016973,2]
[400185796,1767177043907,-500.0,0.00016973,2]
[400185797,1767177043917,-640.49953855,0.00016973,2]
[400185798,1767177043927,-500.0,0.00016973,2]
[400185799,1767177043937,-500.0,0.00016973,2]
[400185800,1767177043947,-500.0,0.00016973,2]
[400185801,1767177043958,-160.43464258,0.00016973,2]
[400185802,1767177043967,-500.0,0.00016973,2]
[400185803,1767177043977,-500.0,0.00016973,2]
[400185804,1767177043987,-500.0,0.00016973,2]
[400185805,1767177043996,-500.0,0.00016973,2]
[400185806,1767177044006,-160.40696499,0.00016973,2]
[400185807,1767177044015,-500.0,0.00016973,2]
[400185808,1767177044024,-500.0,0.00016973,2]
[400185809,1767177044034,-500.0,0.00016973,2]
[400185810,1767177044043,-160.40025967,0.00016973,2]
[400185811,1767177044054,-500.0,0.00016973,2]
[400185812,1767177044063,-500.0,0.00016973,2]
[400185813,1767177044073,-500.0,0.00016973,2]
[400185814,1767177044082,-162.50883671,0.00016973,2]
[400185815,1767177044092,-162.29676587,0.00016973,2]
[400185816,1767177044101,-500.0,0.00016973,2]
[400185817,1767177044111,-571.16127303,0.00016973,2]
[400185818,1767177044121,-500.0,0.00016973,2]
[400185819,1767177044131,-160.38133172,0.00016973,2]
[400185820,1767177044140,-150.1570918,0.00016973,2]
[400185821,1767177044150,-160.40600151,0.00016973,2]
[400185822,1767177044160,-427.40368537,0.00016973,2]
[400185823,1767177044170,-160.43301019,0.00016973,2]
[400185824,1767177044179,-500.0,0.00016973,2]
[400185825,1767177044188,-500.0,0.00016973,2]
[400185826,1767177044198,-220.61613602,0.00016973,2]
[400185827,1767177044208,-207.79365149,0.00016973,2]
[400185828,1767177044218,-500.0,0.00016973,2]
[400185829,1767177044227,-500.0,0.00016973,2]
[400185830,1767177044237,-500.0,0.00016973,2]
[400185831,1767177044247,-500.0,0.00016973,2]
[400185832,1767177044257,-500.0,0.00016973,2]
[400185833,1767177044266,-500.0,0.00016973,2]
[400185834,1767177044276,-500.0,0.00016973,2]
[400185835,1767177044285,-500.0,0.00016973,2]
[400185836,1767177044295,-500.60403875,0.00016973,2]
[400185837,1767177044307,-500.0,0.00016973,2]
[400185838,1767177044322,-501.00189818,0.00016973,2]
[400185839,1767177044332,-500.0,0.00016973,2]
[400185840,1767177044342,-500.0,0.00016973,2]
[400185841,1767177044352,-500.0,0.00016973,2]
[400185842,1767177044362,-500.0,0.00016973,2]
[400185843,1767177044372,-160.4337152,0.00016973,2]
[400185844,1767177044384,-640.9293227,0.00016973,2]
[400185845,1767177044397,-177.93864097,0.00016973,2]
[400185846,1767177044407,-160.43167139,0.00016973,2]
[400185847,1767177044417,-160.42561905,0.00016973,2]
[400185848,1767177044427,-150.4025269,0.00016973,2]
[400185849,1767177044436,-500.0,0.00016973,2]
[400185850,1767177044445,-500.0,0.00016973,2]
[400185851,1767177044455,-506.98216206,0.00016973,2]
[400185852,1767177044465,-396.18408407,0.00016973,2]
[400185853,1767177044474,-167.17790449,0.00016973,2]
[400185854,1767177044483,-469.2844286,0.00016973,2]
[400185855,1767177044492,-500.0,0.00016973,2]
[400185856,1767177044502,-500.0,0.00016973,2]
[400185857,1767177044512,-509.92461485,0.00016973,2]
[400185858,1767177044521,-374.93803347,0.00016973,2]
[400185859,1767177044531,-500.0,0.00016973,2]
[400185860,1767177044540,-161.33309619,0.00016973,2]
[400185861,1767177044549,-500.0,0.00016973,2]
[400185862,1767177044559,-159.68383532,0.00016973,2]
[400185863,1767177044569,-523.82155928,0.00016973,2]
[400185864,1767177044578,-345.18608284,0.00016973,2]
[400185865,1767177044588,-501.7651244,0.00016973,2]
[400185866,1767177044598,-500.0,0.00016973,2]
[400185867,1767177044607,-500.0,0.00016973,2]
[400185868,1767177044617,-500.0,0.00016973,2]
[400185869,1767177044627,-500.0,0.00016973,2]
[400185870,1767177044636,-500.0,0.00016973,2]
[400185871,1767177044645,-150.0,0.00016973,2]
[400185872,1767177044654,-1000.0,0.00016976,2]
[400185873,1767177044664,-1000.0,0.00016979,2]
[400185874,1767177044673,-1000.0,0.00016982,2]
[400185875,1767177044683,-151.0,0.00016983,2]
[400185876,1767177044692,-725.15,0.00016986,2]
[400185877,1767177044702,-167.90361921,0.00016986,2]
[400185878,1767177044711,-157.83595805,0.00016986,2]
[400185879,1767177044720,-211.05978879,0.00016986,2]
[400185880,1767177044730,-190.90622458,0.00016986,2]
[400185881,1767177044739,-154.04577029,0.00016986,2]
[400185882,1767177044748,-1000.0,0.00016987,2]
[400185883,1767177044758,-151.80413951,0.00016987,2]
[400185884,1767177044767,-217.85001296,0.0001699,2]
[400185885,1767177044777,-482.9001275,0.00016992,2]
[400185886,1767177044786,-500.0,0.00016996,2]
[400185887,1767177044796,-500.0,0.00016996,2]
[400185888,1767177044805,-500.0,0.00016996,2]
[400185889,1767177044815,-500.0,0.00016996,2]
[400185890,1767177044824,-500.0,0.00016996,2]
[400185891,1767177044833,-1000.0,0.00016996,2]
[400185892,1767177044843,-128536.4820281,0.00016997,2]
[400185893,1767177044851,-24387.5734998,0.00016997,2]
[400185894,1767177044861,-1784.8999912,0.00016997,2]
[400185895,1767177044870,-54864.7717124,0.00016997,2]
[400185896,1767177044879,-151.0,0.00016997,2]
[400185897,1767177044890,-263.0622015,0.00016999,2]
[400185899,1767177044899,-467.19773594,0.00016999,2]
[400185900,1767177044908,-567.50706892,0.00016999,2]
[400185901,1767177044917,-300.0,0.00016999,2]
[400185902,1767177044928,-695.86626981,0.00016999,2]
[400185903,1767177044938,-500.0,0.00016999,2]
[400185904,1767177044948,-500.0,0.00016999,2]
[400185905,1767177044957,-500.0,0.00016999,2]
[400185906,1767177044967,-500.0,0.00016999,2]
[400185907,1767177044976,-500.0,0.00016999,2]
[400185908,1767177044986,-497.77022115,0.00016999,2]
[400185909,1767177044995,-500.0,0.00016999,2]
[400185910,1767177045006,-500.0,0.00016999,2]
[400185911,1767177045021,-500.0,0.00016999,2]
[400185912,1767177045031,-177.66511868,0.00016999,2]
[400185913,1767177045041,-300.0,0.00016999,2]
[400185914,1767177045051,-500.0,0.00016999,2]
[400185915,1767177045061,-500.0,0.00016999,2]
[400185916,1767177045071,-500.0,0.00016999,2]
[400185917,1767177045081,-535.01294338,0.00016999,2]
[400185918,1767177045091,-500.0,0.00016999,2]
[400185919,1767177045100,-500.0,0.00016999,2]
[400185920,1767177045109,-561.12,0.00016999,2]
[400185921,1767177045118,-300.0,0.00016999,2]
[400185922,1767177045127,-300.0,0.00016999,2]
[400185923,1767177045136,-300.0,0.00016999,2]
[400185924,1767177045146,-300.0,0.00016999,2]
[400185925,1767177045156,-666.0,0.00016999,2]
[400185926,1767177045165,-2218.60438038,0.00016999,2]
[400185927,1767177045175,-150.0,0.00016999,2]
[400185928,1767177045187,-300.0,0.00016999,2]
[400185929,1767177045196,-1902701.20315343,0.00017,2]
[400185930,1767177045510,-613.0,0.00015556,2]
[400185931,1767177045520,-145.14934782,0.00017,2]
[400185932,1767177045532,-468.36431182,0.00017,2]
[400185933,1767177045544,-705.65580536,0.00017,2]
[400185934,1767177045555,-264.1780204,0.00017,2]
[400185935,1767177045567,-16197.240802,0.00017,2]
[400185936,1767177045606,-169.74380696,0.00013476,2]
[400185937,1767177045616,-4110.63275253,0.00017,2]
[400185938,1767177045628,-2617.51112008,0.00017,2]
[400185942,1767177061421,500.0,0.0004319,120]
[400185943,1767177174850,-206.23950731,0.00013076,2]
[400185944,1767177178662,-32.68059269,0.00013076,2]
[400185945,1767177178685,-134.5147444,0.00013076,2]
[400185946,1767177363241,500.0,0.00043192,120]
[400185949,1767177604798,257.0,0.00013076,2]
[400185951,1767177660804,500.0,0.00043188,120]
[400185956,1767177742248,750.0,0.00043188,120]
[400185960,1767177753496,750.0,0.00043188,120]
[400185961,1767177801987,2142.15965903,0.00043188,120]
[400185962,1767177803616,387.3585,0.00012976,2]
[400185975,1767177961959,500.0,0.00043188,120]
[400185976,1767177984845,-71.663276,0.00013076,2]
[400185977,1767177984869,-94.996724,0.00013088,2]
[400185978,1767177987945,-1625.353276,0.00013088,2]
[400185981,1767178046460,500.0,0.00043188,120]
[400185982,1767178072085,999.0,0.00013116,3]
[400185985,1767178089609,99195.0,0.00043188,120]
[400185999,1767178231819,-250.0,0.00013196,2]
[400186000,1767178231831,-1200.0,0.00013196,2]
[400186002,1767178231841,-1200.0,0.00013196,2]
[400186003,1767178231851,-300.0,0.00013196,2]
[400186005,1767178231861,-258.0,0.00013196,2]
[400186006,1767178231871,-11667.64,0.00013197,2]
[400186007,1767178231882,-250.0,0.00013241,2]
[400186008,1767178231892,-1551.35,0.00013245,2]
[400186009,1767178231902,-3720.3762007,0.00013357,2]
[400186010,1767178231912,-227.52864207,0.00013357,2]
[400186011,1767178231923,-6078.70383308,0.00013357,2]
[400186012,1767178231933,-12700.1894209,0.00013444,2]
[400186013,1767178231943,-151.0,0.00013451,2]
[400186014,1767178231954,-500.0,0.00013453,2]
[400186015,1767178231964,-242.52987778,0.00013453,2]
[400186016,1767178231974,-223.27369263,0.00013453,2]
[400186017,1767178231984,-117630.35742837,0.00013454,2]
[400186018,1767178231996,-17777.64688827,0.00013454,2]
[400186019,1767178232008,-2643.18,0.00013454,2]
[400186020,1767178232136,-519.16293957,0.00013454,2]
[400186021,1767178232149,-2064.94711756,0.00013454,2]